fUSD/lending_fUSD_20240420
["ID","MTS","AMOUNT","RATE_DAILY","PERIOD"]
[323036388,1713610242107,-500.0,0.00015068,2]
[323036389,1713610242117,-500.0,0.00015068,2]
[323036390,1713610242127,-500.0,0.00015068,2]
[323036391,1713610242136,-500.0,0.00015068,2]
[323036392,1713610242146,-500.0,0.00015068,2]
[323036393,1713610242156,-594.09,0.00015068,2]
[323036394,1713610242165,-867.5,0.00015068,2]
[323036396,1713610242175,-500.0,0.00015068,2]
[323036397,1713610242184,-1307.81,0.00015068,2]
[323036398,1713610242194,-582.33,0.00015068,2]
[323036400,1713610242204,-500.0,0.00015068,2]
[323036402,1713610242213,-500.0,0.00015068,2]
[323036404,1713610242223,-500.0,0.00015068,2]
[323036405,1713610242232,-1554.57,0.00015068,2]
[323036406,1713610242242,-500.0,0.00015068,2]
[323036407,1713610242252,-500.0,0.00015068,2]
[323036408,1713610242262,-500.0,0.00015068,2]
[323036409,1713610242272,-606.54,0.00015068,2]
[323036410,1713610242282,-500.0,0.00015068,2]
[323036411,1713610242291,-500.0,0.00015068,2]
[323036412,1713610242301,-500.0,0.00015068,2]
[323036413,1713610242311,-500.0,0.00015068,2]
[323036414,1713610242321,-500.0,0.00015068,2]
[323036415,1713610242331,-500.0,0.00015068,2]
[323036416,1713610242342,-500.0,0.00015068,2]
[323036417,1713610242352,-500.0,0.00015068,2]
[323036418,1713610242362,-500.0,0.00015068,2]
[323036419,1713610242372,-1218.26,0.00015068,2]
[323036420,1713610242382,-500.0,0.00015068,2]
[323036421,1713610242392,-848.86,0.00015068,2]
[323036422,1713610242401,-500.0,0.00015068,2]
[323036423,1713610242412,-1022.65,0.00015068,2]
[323036424,1713610242422,-974.97,0.00015068,2]
[323036425,1713610242432,-500.0,0.00015068,2]
[323036427,1713610242442,-500.0,0.00015068,2]
[323036429,1713610242452,-500.0,0.00015068,2]
[323036431,1713610242462,-500.0,0.00015068,2]
[323036433,1713610242471,-886.92,0.00015068,2]
[323036435,1713610242482,-500.0,0.00015068,2]
[323036436,1713610242491,-500.0,0.00015068,2]
[323036438,1713610242501,-500.0,0.00015068,2]
[323036441,1713610242511,-683.72,0.00015068,2]
[323036443,1713610242520,-500.0,0.00015068,2]
[323036445,1713610242530,-900.03,0.00015068,2]
[323036447,1713610242540,-540.35,0.00015068,2]
[323036448,1713610242550,-603.39,0.00015068,2]
[323036450,1713610242559,-500.0,0.00015068,2]
[323036452,1713610242568,-1771.07,0.00015068,2]
[323036453,1713610242578,-500.0,0.00015068,2]
[323036454,1713610242588,-500.0,0.00015068,2]
[323036455,1713610242597,-503.33327216,0.00015068,2]
[323036456,1713610242606,-704.88,0.00015068,2]
[323036457,1713610242617,-500.0,0.00015068,2]
[323036458,1713610242626,-503.06,0.00015068,2]
[323036459,1713610242636,-500.0,0.00015068,2]
[323036460,1713610242646,-500.0,0.00015068,2]
[323036461,1713610242656,-500.0,0.00015068,2]
[323036462,1713610242666,-972.22,0.00015068,2]
[323036463,1713610242675,-299.01622325,0.00015068,2]
[323036464,1713610242686,-982.29,0.00015068,2]
[323036465,1713610242696,-500.0,0.00015068,2]
[323036466,1713610242705,-500.0,0.00015068,2]
[323036467,1713610242715,-1880.98,0.00015068,2]
[323036468,1713610242724,-500.0,0.00015068,2]
[323036469,1713610242734,-582.58,0.00015068,2]
[323036470,1713610242744,-500.0,0.00015068,2]
[323036471,1713610242754,-1765.63,0.00015068,2]
[323036472,1713610242764,-177.27242034,0.00015068,2]
[323036473,1713610242774,-841.22,0.00015068,2]
[323036474,1713610242783,-500.0,0.00015068,2]
[323036475,1713610242794,-500.0,0.00015068,2]
[323036476,1713610242803,-2110.88,0.00015068,2]
[323036477,1713610242813,-500.0,0.00015068,2]
[323036478,1713610242822,-500.0,0.00015068,2]
[323036479,1713610242832,-500.0,0.00015068,2]
[323036480,1713610243087,-561.91,0.00015068,2]
[323036481,1713610243097,-1128.65,0.00015068,2]
[323036482,1713610243107,-354.07915056,0.00015068,2]
[323036483,1713610243116,-500.0,0.00015068,2]
[323036484,1713610243125,-757.16,0.00015068,2]
[323036485,1713610243134,-500.0,0.00015068,2]
[323036486,1713610243143,-500.0,0.00015068,2]
[323036487,1713610243152,-534.2,0.00015068,2]
[323036488,1713610243162,-1228.09,0.00015068,2]
[323036489,1713610243171,-526.69,0.00015068,2]
[323036490,1713610243181,-500.0,0.00015068,2]
[323036491,1713610243190,-651.66,0.00015068,2]
[323036492,1713610243199,-500.0,0.00015068,2]
[323036493,1713610243209,-781.72,0.00015068,2]
[323036494,1713610243218,-500.0,0.00015068,2]
[323036495,1713610243227,-500.0,0.00015068,2]
[323036496,1713610243236,-500.0,0.00015068,2]
[323036497,1713610243245,-500.0,0.00015068,2]
[323036498,1713610243254,-1835.58,0.00015068,2]
[323036499,1713610243263,-500.0,0.00015068,2]
[323036500,1713610243273,-500.0,0.00015068,2]
[323036501,1713610243282,-1503.93,0.00015068,2]
[323036502,1713610243291,-500.0,0.00015068,2]
[323036503,1713610243301,-500.0,0.00015068,2]
[323036504,1713610243310,-500.0,0.00015068,2]
[323036505,1713610243319,-1292.26,0.00015068,2]
[323036506,1713610243329,-500.0,0.00015068,2]
[323036507,1713610243338,-500.0,0.00015068,2]
[323036508,1713610243347,-640.83,0.00015068,2]
[323036509,1713610243356,-501.5541157,0.00015068,2]
[323036510,1713610243366,-908.91,0.00015068,2]
[323036511,1713610243375,-500.0,0.00015068,2]
[323036512,1713610243384,-500.0,0.00015068,2]
[323036513,1713610243393,-677.42,0.00015068,2]
[323036514,1713610243403,-500.0,0.00015068,2]
[323036515,1713610243411,-500.0,0.00015068,2]
[323036516,1713610243421,-767.93,0.00015068,2]
[323036517,1713610243430,-1657.67,0.00015068,2]
[323036518,1713610243439,-656.25,0.00015068,2]
[323036519,1713610243448,-500.0,0.00015068,2]
[323036520,1713610243457,-500.0,0.00015068,2]
[323036521,1713610243466,-500.0,0.00015068,2]
[323036522,1713610243475,-500.0,0.00015068,2]
[323036523,1713610243485,-500.0,0.00015068,2]
[323036524,1713610243494,-1814.56,0.00015068,2]
[323036525,1713610243503,-500.0,0.00015068,2]
[323036526,1713610243513,-1429.82,0.00015068,2]
[323036527,1713610243522,-728.37,0.00015068,2]
[323036528,1713610243532,-750.33,0.00015068,2]
[323036529,1713610243541,-500.0,0.00015068,2]
[323036530,1713610243551,-777.79,0.00015068,2]
[323036531,1713610243560,-500.0,0.00015068,2]
[323036532,1713610243569,-1010.64,0.00015068,2]
[323036533,1713610243579,-500.0,0.00015068,2]
[323036534,1713610243589,-500.0,0.00015068,2]
[323036535,1713610243598,-518.38,0.00015068,2]
[323036536,1713610243607,-844.71,0.00015068,2]
[323036537,1713610243617,-1379.65,0.00015068,2]
[323036538,1713610243627,-500.0,0.00015068,2]
[323036539,1713610243636,-1030.65,0.00015068,2]
[323036540,1713610243645,-500.0,0.00015068,2]
[323036541,1713610243655,-500.0,0.00015068,2]
[323036542,1713610243664,-500.0,0.00015068,2]
[323036543,1713610243673,-500.0,0.00015068,2]
[323036544,1713610243683,-169.5629873,0.00015068,2]
[323036545,1713610243692,-500.0,0.00015068,2]
[323036546,1713610243702,-568.29,0.00015068,2]
[323036547,1713610243711,-500.0,0.00015068,2]
[323036548,1713610243720,-500.0,0.00015068,2]
[323036549,1713610243730,-500.0,0.00015068,2]
[323036550,1713610243739,-500.0,0.00015068,2]
[323036551,1713610243748,-887.05,0.00015068,2]
[323036552,1713610243758,-500.0,0.00015068,2]
[323036553,1713610243767,-2561.72,0.00015068,2]
[323036554,1713610243776,-500.0,0.00015068,2]
[323036555,1713610243785,-500.0,0.00015068,2]
[323036556,1713610243795,-500.0,0.00015068,2]
[323036557,1713610243804,-500.0,0.00015068,2]
[323036558,1713610243813,-534.44,0.00015068,2]
[323036559,1713610243823,-1502.91,0.00015068,2]
[323036560,1713610243832,-500.0,0.00015068,2]
[323036561,1713610243842,-500.0,0.00015068,2]
[323036562,1713610243851,-537.22,0.00015068,2]
[323036563,1713610243864,-1582.69,0.00015068,2]
[323036564,1713610243873,-500.0,0.00015068,2]
[323036565,1713610243882,-500.0,0.00015068,2]
[323036566,1713610243892,-500.0,0.00015068,2]
[323036567,1713610243901,-1057.9,0.00015068,2]
[323036568,1713610243911,-500.0,0.00015068,2]
[323036569,1713610243920,-1065.12,0.00015068,2]
[323036570,1713610243929,-811.7,0.00015068,2]
[323036571,1713610243938,-1273.08,0.00015068,2]
[323036572,1713610243948,-500.0,0.00015068,2]
[323036573,1713610243958,-1435.56,0.00015068,2]
[323036574,1713610243966,-565.98,0.00015068,2]
[323036575,1713610243975,-1545.68,0.00015068,2]
[323036576,1713610243985,-500.0,0.00015068,2]
[323036577,1713610243994,-2239.0,0.00015068,2]
[323036578,1713610244003,-500.0,0.00015068,2]
[323036579,1713610244012,-674.7,0.00015068,2]
[323036580,1713610244021,-500.0,0.00015068,2]
[323036581,1713610244031,-672.7,0.00015068,2]
[323036582,1713610244040,-1258.88,0.00015068,2]
[323036583,1713610244049,-558.22,0.00015068,2]
[323036584,1713610244058,-500.0,0.00015068,2]
[323036585,1713610244068,-500.0,0.00015068,2]
[323036586,1713610244078,-500.0,0.00015068,2]
[323036587,1713610244087,-500.0,0.00015068,2]
[323036588,1713610244096,-500.0,0.00015068,2]
[323036589,1713610244105,-500.0,0.00015068,2]
[323036590,1713610244114,-1022.9,0.00015068,2]
[323036591,1713610244123,-1522.89,0.00015068,2]
[323036592,1713610244132,-500.0,0.00015068,2]
[323036593,1713610244143,-500.0,0.00015068,2]
[323036594,1713610244152,-551.87,0.00015068,2]
[323036595,1713610244161,-500.0,0.00015068,2]
[323036596,1713610244171,-500.0,0.00015068,2]
[323036597,1713610244181,-660.19,0.00015068,2]
[323036598,1713610244191,-500.0,0.00015068,2]
[323036599,1713610244201,-500.0,0.00015068,2]
[323036600,1713610244210,-1200.8,0.00015068,2]
[323036601,1713610244219,-822.42,0.00015068,2]
[323036602,1713610244229,-500.0,0.00015068,2]
[323036603,1713610244238,-891.84,0.00015068,2]
[323036604,1713610244248,-1665.19,0.00015068,2]
[323036605,1713610244257,-500.0,0.00015068,2]
[323036606,1713610244266,-500.0,0.00015068,2]
[323036607,1713610244276,-313.66725937,0.00015068,2]
[323036608,1713610244286,-1867.44,0.00015068,2]
[323036609,1713610244295,-512.19,0.00015068,2]
[323036610,1713610244306,-500.0,0.00015068,2]
[323036611,1713610244315,-500.0,0.00015068,2]
[323036612,1713610244325,-500.0,0.00015068,2]
[323036613,1713610244335,-500.0,0.00015068,2]
[323036614,1713610244346,-620.95,0.00015068,2]
[323036615,1713610244357,-500.0,0.00015068,2]
[323036616,1713610244367,-500.0,0.00015068,2]
[323036617,1713610244377,-548.61,0.00015068,2]
[323036618,1713610244387,-500.0,0.00015068,2]
[323036619,1713610244396,-500.0,0.00015068,2]
[323036620,1713610244407,-740.29,0.00015068,2]
[323036621,1713610244417,-500.0,0.00015068,2]
[323036622,1713610244427,-1363.18,0.00015068,2]
[323036623,1713610244437,-500.0,0.00015068,2]
[323036624,1713610244447,-500.0,0.00015068,2]
[323036625,1713610244458,-818.76,0.00015068,2]
[323036626,1713610244469,-500.0,0.00015068,2]
[323036627,1713610244479,-721.07,0.00015068,2]
[323036628,1713610244489,-500.0,0.00015068,2]
[323036629,1713610244500,-678.8,0.00015068,2]
[323036630,1713610244510,-500.0,0.00015068,2]
[323036631,1713610244520,-1134.35,0.00015068,2]
[323036632,1713610244531,-1189.37,0.00015068,2]
[323036633,1713610244541,-500.0,0.00015068,2]
[323036634,1713610244552,-962.97,0.00015068,2]
[323036635,1713610244563,-576.28,0.00015068,2]
[323036636,1713610244573,-500.0,0.00015068,2]
[323036637,1713610244584,-500.0,0.00015068,2]
[323036638,1713610244595,-500.0,0.00015068,2]
[323036639,1713610244604,-709.64,0.00015068,2]
[323036640,1713610244615,-500.0,0.00015068,2]
[323036641,1713610244626,-1647.93,0.00015068,2]
[323036642,1713610244636,-500.0,0.00015068,2]
[323036643,1713610244646,-500.0,0.00015068,2]
[323036644,1713610244656,-500.0,0.00015068,2]
[323036645,1713610244667,-500.0,0.00015068,2]
[323036646,1713610244677,-596.8,0.00015068,2]
[323036647,1713610244687,-500.0,0.00015068,2]
[323036648,1713610244697,-500.0,0.00015068,2]
[323036649,1713610244708,-500.0,0.00015068,2]
[323036650,1713610244718,-583.69,0.00015068,2]
[323036651,1713610244728,-500.0,0.00015068,2]
[323036652,1713610244739,-500.0,0.00015068,2]
[323036653,1713610244749,-500.0,0.00015068,2]
[323036654,1713610244760,-1014.28,0.00015068,2]
[323036655,1713610244771,-500.0,0.00015068,2]
[323036656,1713610244780,-500.0,0.00015068,2]
[323036657,1713610244790,-500.0,0.00015068,2]
[323036658,1713610244801,-500.0,0.00015068,2]
[323036659,1713610244810,-500.0,0.00015068,2]
[323036660,1713610244819,-500.0,0.00015068,2]
[323036661,1713610244829,-500.0,0.00015068,2]
[323036662,1713610244840,-500.0,0.00015068,2]
[323036663,1713610244850,-500.0,0.00015068,2]
[323036664,1713610244860,-500.0,0.00015068,2]
[323036665,1713610244871,-500.0,0.00015068,2]
[323036666,1713610244886,-3118.59,0.00015068,2]
[323036667,1713610244896,-500.0,0.00015068,2]
[323036668,1713610244906,-1500.82,0.00015068,2]
[323036669,1713610244918,-500.0,0.00015068,2]
[323036670,1713610244927,-889.44,0.00015068,2]
[323036671,1713610244937,-500.0,0.00015068,2]
[323036672,1713610244946,-500.0,0.00015068,2]
[323036673,1713610244957,-500.0,0.00015068,2]
[323036674,1713610244967,-934.55,0.00015068,2]
[323036675,1713610244977,-500.0,0.00015068,2]
[323036676,1713610244988,-500.0,0.00015068,2]
[323036677,1713610244998,-500.0,0.00015068,2]
[323036678,1713610245008,-500.0,0.00015068,2]
[323036679,1713610245018,-935.56,0.00015068,2]
[323036680,1713610245028,-656.03,0.00015068,2]
[323036681,1713610245040,-3077.56,0.00015068,2]
[323036682,1713610245050,-1356.86,0.00015068,2]
[323036683,1713610245060,-500.0,0.00015068,2]
[323036684,1713610245070,-500.0,0.00015068,2]
[323036685,1713610245079,-2520.13,0.00015068,2]
[323036686,1713610245089,-500.0,0.00015068,2]
[323036687,1713610245099,-500.0,0.00015068,2]
[323036688,1713610245108,-1895.04,0.00015068,2]
[323036689,1713610245117,-500.0,0.00015068,2]
[323036690,1713610245126,-500.0,0.00015068,2]
[323036691,1713610245136,-500.0,0.00015068,2]
[323036692,1713610245145,-500.0,0.00015068,2]
[323036693,1713610245155,-500.0,0.00015068,2]
[323036694,1713610245164,-500.0,0.00015068,2]
[323036695,1713610245173,-1520.96,0.00015068,2]
[323036696,1713610245183,-500.0,0.00015068,2]
[323036697,1713610245192,-500.0,0.00015068,2]
[323036698,1713610245201,-500.0,0.00015068,2]
[323036700,1713610245211,-500.0,0.00015068,2]
[323036702,1713610245221,-500.0,0.00015068,2]
[323036704,1713610245230,-500.0,0.00015068,2]
[323036706,1713610245239,-1368.15,0.00015068,2]
[323036708,1713610245249,-500.0,0.00015068,2]
[323036711,1713610245258,-500.0,0.00015068,2]
[323036713,1713610245268,-596.15091914,0.00015068,2]
[323036716,1713610245277,-27081.06,0.00015068,2]
[323036719,1713610245286,-500.0,0.00015068,2]
[323036722,1713610245296,-500.0,0.00015068,2]
[323036725,1713610245306,-500.0,0.00015068,2]
[323036727,1713610245316,-500.0,0.00015068,2]
[323036728,1713610245325,-669.39,0.00015068,2]
[323036729,1713610245334,-500.0,0.00015068,2]
[323036730,1713610245344,-500.0,0.00015068,2]
[323036732,1713610245354,-2700.56,0.00015068,2]
[323036735,1713610245363,-500.0,0.00015068,2]
[323036737,1713610245373,-500.0,0.00015068,2]
[323036739,1713610245383,-500.0,0.00015068,2]
[323036741,1713610245392,-500.0,0.00015068,2]
[323036743,1713610245401,-1931.68,0.00015068,2]
[323036755,1713610245501,-2085.08,0.00015068,2]
[323036757,1713610245510,-500.0,0.00015068,2]
[323036759,1713610245519,-578.94,0.00015068,2]
[323036761,1713610245527,-500.0,0.00015068,2]
[323036763,1713610245536,-500.0,0.00015068,2]
[323036765,1713610245546,-934.34,0.00015068,2]
[323036767,1713610245555,-500.0,0.00015068,2]
[323036769,1713610245564,-1640.37,0.00015068,2]
[323036771,1713610245573,-500.0,0.00015068,2]
[323036773,1713610245582,-500.0,0.00015068,2]
[323036775,1713610245591,-3081.84,0.00015068,2]
[323036777,1713610245600,-500.0,0.00015068,2]
[323036779,1713610245609,-500.0,0.00015068,2]
[323036781,1713610245618,-14090.72,0.00015068,2]
[323036783,1713610245626,-3827.47,0.00015068,2]
[323036785,1713610245636,-500.0,0.00015068,2]
[323036786,1713610245645,-500.0,0.00015068,2]
[323036787,1713610245654,-500.0,0.00015068,2]
[323036788,1713610245663,-545.49,0.00015068,2]
[323036789,1713610245671,-591.15,0.00015068,2]
[323036790,1713610245680,-1178.55,0.00015068,2]
[323036791,1713610245689,-500.0,0.00015068,2]
[323036792,1713610245698,-500.0,0.00015068,2]
[323036793,1713610245708,-1575.77,0.00015068,2]
[323036794,1713610245717,-684.72,0.00015068,2]
[323036795,1713610245726,-1569.35,0.00015068,2]
[323036796,1713610245735,-12684.05,0.00015068,2]
[323036797,1713610245744,-656.39,0.00015068,2]
[323036798,1713610245753,-500.0,0.00015068,2]
[323036799,1713610245762,-500.0,0.00015068,2]
[323036800,1713610245771,-508.67,0.00015068,2]
[323036801,1713610245780,-500.0,0.00015068,2]
[323036802,1713610245789,-500.0,0.00015068,2]
[323036803,1713610245799,-500.0,0.00015068,2]
[323036804,1713610245808,-500.0,0.00015068,2]
[323036805,1713610245817,-500.0,0.00015068,2]
[323036806,1713610245826,-601.57,0.00015068,2]
[323036807,1713610245835,-682.78,0.00015068,2]
[323036808,1713610245845,-662.13,0.00015068,2]
[323036809,1713610245854,-1011.59,0.00015068,2]
[323036810,1713610245864,-500.0,0.00015068,2]
[323036811,1713610245877,-500.0,0.00015068,2]
[323036812,1713610245887,-12854.93,0.00015068,2]
[323036813,1713610245896,-2227.51,0.00015068,2]
[323036814,1713610245905,-500.0,0.00015068,2]
[323036815,1713610245916,-1016.81,0.00015068,2]
[323036816,1713610245925,-3144.69,0.00015068,2]
[323036817,1713610245934,-500.0,0.00015068,2]
[323036818,1713610245943,-500.0,0.00015068,2]
[323036819,1713610245952,-555.49,0.00015068,2]
[323036820,1713610245962,-500.0,0.00015068,2]
[323036821,1713610245971,-500.0,0.00015068,2]
[323036822,1713610245980,-681.45,0.00015068,2]
[323036823,1713610245990,-500.0,0.00015068,2]
[323036824,1713610246001,-500.0,0.00015068,2]
[323036825,1713610246009,-160.50445739,0.00015068,2]
[323036826,1713610246019,-500.0,0.00015068,2]
[323036827,1713610246028,-1368.94,0.00015068,2]
[323036828,1713610246036,-500.0,0.00015068,2]
[323036829,1713610246045,-2641.3,0.00015068,2]
[323036830,1713610246054,-4052.79,0.00015068,2]
[323036831,1713610246063,-513.24,0.00015068,2]
[323036832,1713610246072,-500.0,0.00015068,2]
[323036833,1713610246081,-500.0,0.00015068,2]
[323036834,1713610246091,-564.25,0.00015068,2]
[323036835,1713610246100,-1076.18,0.00015068,2]
[323036836,1713610246110,-622.21,0.00015068,2]
[323036837,1713610246119,-500.0,0.00015068,2]
[323036838,1713610246128,-500.0,0.00015068,2]
[323036839,1713610246136,-500.0,0.00015068,2]
[323036840,1713610246146,-500.0,0.00015068,2]
[323036841,1713610246155,-500.0,0.00015068,2]
[323036842,1713610246165,-500.0,0.00015068,2]
[323036843,1713610246174,-500.0,0.00015068,2]
[323036844,1713610246183,-713.88,0.00015068,2]
[323036845,1713610246192,-500.0,0.00015068,2]
[323036846,1713610246201,-500.0,0.00015068,2]
[323036847,1713610246210,-500.0,0.00015068,2]
[323036848,1713610246219,-500.0,0.00015068,2]
[323036849,1713610246229,-500.0,0.00015068,2]
[323036850,1713610246238,-467.60880875,0.00015068,2]
[323036851,1713610246248,-1053.91,0.00015068,2]
[323036852,1713610246257,-2083.64,0.00015068,2]
[323036853,1713610246266,-500.0,0.00015068,2]
[323036854,1713610246275,-500.0,0.00015068,2]
[323036855,1713610246285,-1263.4,0.00015068,2]
[323036856,1713610246294,-500.0,0.00015068,2]
[323036857,1713610246304,-2157.32,0.00015068,2]
[323036858,1713610246314,-500.0,0.00015068,2]
[323036859,1713610246323,-500.0,0.00015068,2]
[323036860,1713610246333,-500.0,0.00015068,2]
[323036861,1713610246342,-500.0,0.00015068,2]
[323036862,1713610246352,-500.0,0.00015068,2]
[323036863,1713610246361,-500.0,0.00015068,2]
[323036864,1713610246370,-500.0,0.00015068,2]
[323036865,1713610246379,-500.0,0.00015068,2]
[323036866,1713610246388,-500.0,0.00015068,2]
[323036867,1713610246398,-500.0,0.00015068,2]
[323036868,1713610246406,-500.0,0.00015068,2]
[323036869,1713610246416,-500.0,0.00015068,2]
[323036870,1713610246425,-515.59,0.00015068,2]
[323036871,1713610246434,-500.0,0.00015068,2]
[323036872,1713610246443,-500.0,0.00015068,2]
[323036873,1713610246451,-985.74,0.00015068,2]
[323036874,1713610246461,-3097.56,0.00015068,2]
[323036875,1713610246470,-500.0,0.00015068,2]
[323036876,1713610246479,-500.0,0.00015068,2]
[323036877,1713610246487,-542.94,0.00015068,2]
[323036878,1713610246496,-4658.13,0.00015068,2]
[323036879,1713610246505,-500.0,0.00015068,2]
[323036880,1713610246514,-500.0,0.00015068,2]
[323036881,1713610246523,-500.0,0.00015068,2]
[323036882,1713610246532,-1163.95,0.00015068,2]
[323036883,1713610246541,-947.78,0.00015068,2]
[323036884,1713610246550,-500.0,0.00015068,2]
[323036885,1713610246558,-1738.82,0.00015068,2]
[323036886,1713610246567,-500.0,0.00015068,2]
[323036887,1713610246576,-500.0,0.00015068,2]
[323036888,1713610246586,-500.0,0.00015068,2]
[323036889,1713610246596,-978.35,0.00015068,2]
[323036890,1713610246605,-8465.0,0.00015068,2]
[323036891,1713610246614,-500.0,0.00015068,2]
[323036892,1713610246623,-500.0,0.00015068,2]
[323036893,1713610246632,-1963.38,0.00015068,2]
[323036894,1713610246641,-500.0,0.00015068,2]
[323036895,1713610246650,-824.72,0.00015068,2]
[323036896,1713610246659,-500.0,0.00015068,2]
[323036897,1713610246668,-500.0,0.00015068,2]
[323036898,1713610246677,-500.0,0.00015068,2]
[323036899,1713610246687,-500.0,0.00015068,2]
[323036900,1713610246696,-636.17,0.00015068,2]
[323036901,1713610246705,-500.0,0.00015068,2]
[323036902,1713610246714,-500.0,0.00015068,2]
[323036903,1713610246723,-595.97,0.00015068,2]
[323036904,1713610246732,-500.0,0.00015068,2]
[323036905,1713610246742,-500.0,0.00015068,2]
[323036906,1713610246753,-500.0,0.00015068,2]
[323036907,1713610246763,-500.0,0.00015068,2]
[323036908,1713610246772,-500.0,0.00015068,2]
[323036909,1713610246781,-3127.83,0.00015068,2]
[323036910,1713610246790,-500.0,0.00015068,2]
[323036911,1713610246799,-500.0,0.00015068,2]
[323036912,1713610246809,-840.59,0.00015068,2]
[323036913,1713610246818,-1620.31,0.00015068,2]
[323036914,1713610246827,-500.0,0.00015068,2]
[323036915,1713610246836,-500.0,0.00015068,2]
[323036916,1713610246845,-500.0,0.00015068,2]
[323036917,1713610246854,-500.0,0.00015068,2]
[323036918,1713610246864,-901.54,0.00015068,2]
[323036919,1713610246873,-943.55,0.00015068,2]
[323036920,1713610246882,-500.0,0.00015068,2]
[323036921,1713610246891,-643.51534061,0.00015068,2]
[323036922,1713610246900,-4054.45,0.00015068,2]
[323036923,1713610246910,-1755.69,0.00015068,2]
[323036924,1713610246919,-500.0,0.00015068,2]
[323036925,1713610246928,-500.0,0.00015068,2]
[323036926,1713610246937,-500.0,0.00015068,2]
[323036927,1713610246950,-674.54,0.00015068,2]
[323036928,1713610246961,-500.0,0.00015068,2]
[323036929,1713610246972,-500.0,0.00015068,2]
[323036930,1713610246981,-500.0,0.00015068,2]
[323036931,1713610246990,-500.0,0.00015068,2]
[323036932,1713610247000,-500.0,0.00015068,2]
[323036933,1713610247008,-500.0,0.00015068,2]
[323036934,1713610247017,-500.0,0.00015068,2]
[323036935,1713610247027,-500.0,0.00015068,2]
[323036936,1713610247037,-1216.06,0.00015068,2]
[323036937,1713610247046,-1463.37,0.00015068,2]
[323036938,1713610247056,-500.0,0.00015068,2]
[323036939,1713610247065,-500.0,0.00015068,2]
[323036940,1713610247074,-500.0,0.00015068,2]
[323036941,1713610247083,-500.0,0.00015068,2]
[323036942,1713610247092,-2519.39,0.00015068,2]
[323036943,1713610247102,-1897.89,0.00015068,2]
[323036944,1713610247111,-500.0,0.00015068,2]
[323036945,1713610247121,-500.0,0.00015068,2]
[323036946,1713610247131,-500.0,0.00015068,2]
[323036947,1713610247140,-553.78,0.00015068,2]
[323036948,1713610247149,-500.0,0.00015068,2]
[323036949,1713610247158,-500.0,0.00015068,2]
[323036950,1713610247167,-500.0,0.00015068,2]
[323036951,1713610247177,-500.0,0.00015068,2]
[323036952,1713610247186,-1191.14,0.00015068,2]
[323036953,1713610247195,-1163.06,0.00015068,2]
[323036954,1713610247205,-500.0,0.00015068,2]